bitfinex/quotes_ETHUSD_20240810
["timestamp","ask_amount","ask_price","bid_price","bid_amount"]
[1723249284789,3.82375,2615.3,2614.4,0.79188]
[1723249285010,0.28657205,2615.6,2614.4,0.79188]
[1723249285011,3.82343,2615.5,2614.4,0.79188]
[1723249285162,6.28881,2615.7,2614.9,3.82421]
[1723249285367,3.82326,2615.6,2615.0,3.82407]
[1723249285681,3.82329,2615.6,2614.7,3.82448]
[1723249285862,3.82364,2615.4,2614.8,0.932448]
[1723249286259,3.82328,2615.6,2614.8,0.932448]
[1723249286475,3.82351,2615.4,2614.8,0.932448]
[1723249286701,3.82389,2615.2,2614.5,4.145818]
[1723249286875,3.82389,2615.2,2614.5,0.321068]
[1723249287080,3.82429,2614.9,2614.4,0.24188]
[1723249287296,6.2899,2615.0,2614.4,3.82495]
[1723249287501,6.2899,2615.0,2614.3,3.82504]
[1723249287502,2.4657,2615.0,2614.5,3.82481]
[1723249287662,3.82432,2614.9,2614.3,3.8251]
[1723249287868,3.82455,2614.7,2614.1,3.82532]
[1723249288163,3.82425,2614.9,2613.7,3.82588]
[1723249288395,3.82425,2614.9,2613.7,3.82593]
[1723249288396,6.53652,2614.9,2613.7,3.82593]
[1723249288710,3.82453,2614.7,2614.0,3.82546]
[1723249289000,3.82453,2614.7,2614.0,3.82544]
[1723249289202,6.28995,2614.9,2614.0,3.82544]
[1723249289371,6.918945,2614.9,2614.0,3.82544]
[1723249289571,6.918965,2614.9,2614.0,3.82544]
[1723249289793,6.918965,2614.9,2614.1,0.55]
[1723249290310,3.82483,2614.5,2613.6,3.82607]
[1723249290602,3.82534,2614.2,2613.5,3.82627]
[1723249290911,3.82541,2614.1,2613.5,3.82627]
[1723249291116,3.82541,2614.1,2613.4,7.65266]
[1723249291267,2.4657,2614.3,2613.1,3.82683]
[1723249291467,2.4657,2614.3,2613.7,3.82588]
[1723249291678,3.82474,2614.6,2613.9,3.82563]
[1723249291979,3.82474,2614.6,2613.9,3.8256]
[1723249292181,2.4657,2614.7,2614.1,3.82532]
[1723249292377,6.29024,2614.7,2614.0,7.65091]
[1723249292698,3.094724,2614.7,2613.9,3.82559]
[1723249292915,3.82479,2614.6,2613.9,3.82559]
[1723249293118,3.82477,2614.6,2613.9,3.82559]
[1723249293324,3.82477,2614.6,2613.8,3.82583]
[1723249293530,2.4657,2614.7,2613.9,0.55]
[1723249293829,2.4657,2614.7,2614.0,3.82547]
[1723249293992,3.094717,2614.7,2614.0,3.82547]
[1723249294390,2.4657,2615.1,2613.9,3.82569]
[1723249294632,2.4657,2615.1,2614.3,3.8251]
[1723249294791,2.4657,2615.1,2614.3,3.82502]
[1723249294792,3.82409,2615.0,2614.3,3.82502]
[1723249295110,3.82409,2615.0,2614.4,3.82488]
[1723249295428,3.82359,2615.4,2614.7,3.82443]
[1723249295588,3.82359,2615.4,2614.7,7.64886]
[1723249295794,6.2891,2615.5,2614.7,3.82443]
[1723249296233,3.82353,2615.4,2614.7,7.64885]
[1723249296395,3.82353,2615.4,2614.8,3.82437]
[1723249296699,3.82353,2615.4,2614.9,3.82423]
[1723249296896,2.4657,2615.5,2614.9,3.82423]
[1723249296897,2.4657,2615.5,2614.9,3.82414]
[1723249297142,3.094595,2615.5,2614.5,3.82478]
[1723249297436,2.4657,2615.5,2614.9,3.82415]
[1723249298099,3.82325,2615.6,2614.9,3.82413]
[1723249298299,3.82336,2615.5,2614.9,3.82413]
[1723249298599,3.82325,2615.6,2614.9,3.82413]
[1723249298600,3.82325,2615.6,2615.0,3.82409]
[1723249298808,3.82359,2615.4,2614.7,3.82444]
[1723249299145,2.4657,2615.8,2614.5,3.82473]
[1723249299146,3.82379,2615.2,2614.5,3.82473]
[1723249299300,3.82379,2615.2,2614.1,9.9088]
[1723249299301,3.82382,2615.2,2614.6,0.55]
[1723249299500,3.82382,2615.2,2614.1,9.9088]
[1723249299501,7.64772,2615.2,2614.5,3.82472]
[1723249299715,3.82363,2615.4,2614.8,3.82426]
[1723249299932,3.82363,2615.4,2614.9,0.55]
[1723249300237,3.82331,2615.6,2614.9,4.45066594]
[1723249300238,7.64661,2615.6,2614.9,4.45066594]
[1723249300938,3.8233,2615.6,2615.0,3.82396]
[1723249301144,3.8233,2615.6,2615.1,3.82393]
[1723249301445,3.8233,2615.6,2614.9,4.37412]
[1723249301645,7.64661,2615.6,2614.9,4.37412]
[1723249301810,3.82336,2615.5,2614.9,4.37412]
[1723249302216,3.8233,2615.6,2614.9,4.37412]
[1723249302412,7.64662,2615.6,2614.9,4.37412]
[1723249302612,3.82337,2615.5,2614.9,4.37412]
[1723249303319,7.64628,2615.7,2614.9,4.37412]
[1723249303525,3.82322,2615.6,2614.9,4.37412]
[1723249303812,3.82322,2615.6,2614.9,8.19827]
[1723249304260,3.82341,2615.5,2614.9,4.37412]
[1723249304443,3.82341,2615.5,2614.9,8.19826]
[1723249304749,3.82341,2615.5,2614.9,4.37412]
[1723249305109,3.82341,2615.5,2614.9,8.19827]
[1723249305306,3.82341,2615.5,2614.9,8.19826]
[1723249305539,4.451969,2615.7,2614.9,8.19826]
[1723249305540,3.82323,2615.6,2615.0,3.82397]
[1723249305723,0.6917669,2615.6,2615.0,3.82397]
[1723249306642,8.261,2616.3,2614.9,4.37412]
[1723249306643,2.4237,2616.2,2615.4,3.82337]
[1723249306816,3.82198,2616.5,2615.3,2.3796]
[1723249306817,3.82266,2616.0,2615.3,0.07645475]
[1723249307023,3.82372,2615.3,2614.7,2.3796]
[1723249307653,3.82313,2615.7,2615.1,3.82392]
[1723249307654,3.82315,2615.7,2615.1,3.82392]
[1723249307815,2.4237,2615.8,2615.2,3.82371]
[1723249308061,3.82308,2615.7,2615.0,3.82396]
[1723249308469,2.4237,2615.8,2615.0,3.82396]
[1723249308694,3.82315,2615.7,2615.0,3.82396]
[1723249308995,3.82315,2615.7,2615.1,3.82392]
[1723249309197,2.4237,2615.8,2615.1,3.82394]
[1723249309366,10.06885,2616.1,2615.3,3.82356]
[1723249309565,10.06886,2616.1,2615.5,3.8233]
[1723249309883,3.82227,2616.3,2615.5,3.8233]
[1723249310194,6.24566,2616.5,2615.8,3.82281]
[1723249310892,6.24566,2616.5,2615.9,3.82271]
[1723249311261,2.4237,2616.5,2615.9,3.82265]
[1723249311673,6.2456,2616.5,2615.9,3.82265]
[1723249311883,2.4237,2616.5,2616.0,3.8226]
[1723249312085,2.4237,2616.5,2616.1,3.82242]
[1723249312305,0.59904228,2617.1,2616.4,3.82192]
[1723249312492,2.4237,2617.4,2616.5,3.82188]
[1723249312676,2.4237,2617.4,2616.6,3.82173]
[1723249312677,10.06503,2617.4,2616.6,3.82173]
[1723249312877,6.24433,2617.4,2616.6,3.89509059]
[1723249313109,0.624433,2617.3,2616.6,3.89500059]
[1723249313313,4.445163,2617.3,2616.6,3.89500059]
[1723249313873,3.82088,2617.2,2616.6,3.89500059]
[1723249314077,4.42033729,2617.7,2617.0,3.82107]
[1723249314271,0.68440373,2617.6,2616.8,3.82136]
[1723249314582,0.0012026,2617.7,2617.3,3.82072]
[1723249315713,0.0012026,2617.7,2617.6,3.82029]
[1723249315917,0.0012026,2617.7,2617.6,7.64058]
[1723249316069,0.0012026,2617.7,2617.4,3.82057]
[1723249316275,0.0012026,2617.7,2617.4,3.82048]
[1723249316508,0.0012026,2617.7,2617.5,0.55]
[1723249316673,0.0012026,2617.7,2617.6,3.82029]
[1723249317103,0.0012026,2617.7,2617.6,4.37029]
[1723249317310,0.0012026,2617.7,2617.6,16.34160511]
[1723249317519,0.00229184,2618.0,2617.9,10.0193]
[1723249317675,0.00229184,2618.0,2617.9,10.5693]
[1723249317881,0.00229184,2618.0,2617.9,13.5693]
[1723249318110,0.00229184,2618.0,2617.9,18.74608]
[1723249318278,0.00329179,2618.4,2617.9,4.90693]
[1723249318481,0.00329179,2618.4,2618.3,6.30457]
[1723249318776,0.00329179,2618.4,2618.0,0.55]
[1723249318976,0.00329179,2618.4,2618.0,3.81967]
[1723249319205,0.00329179,2618.4,2617.6,5.698029]
[1723249319206,3.81413,2621.9,2620.9,3.81548]
[1723249319423,3.81476,2621.4,2620.9,0.381548]
[1723249319649,3.81548,2620.9,2620.4,0.57994599]
[1723249319928,3.81509,2621.2,2619.8,0.97902441]
[1723249320133,3.81509,2621.2,2619.4,3.81766]
[1723249320134,3.81592,2620.6,2619.4,3.81766]
[1723249320319,3.8163,2620.4,2619.5,0.55]
[1723249320632,3.81708,2619.9,2619.3,0.5397]
[1723249320833,3.81669,2620.1,2618.7,3.81854]
[1723249320992,0.1,2620.2,2617.8,0.47470553]
[1723249321190,3.81682,2620.0,2617.6,2.922329]
[1723249321426,3.81768,2619.4,2617.6,2.922329]
[1723249321635,3.81799,2619.2,2618.3,3.81915]
[1723249321788,3.81826,2619.0,2618.1,3.81944]
[1723249321988,3.818,2619.2,2618.3,3.81927]
[1723249322191,3.0,2619.9,2618.4,0.381927]
[1723249322386,3.0,2619.9,2617.7,0.2922329]
[1723249322387,3.81768,2619.4,2618.3,3.81925]
[1723249322611,3.81783,2619.3,2618.0,3.81969]
[1723249322986,3.81783,2619.3,2618.2,3.81929]
[1723249322987,3.81829,2619.0,2618.2,3.81929]
[1723249323187,3.81752,2619.5,2618.3,0.381929]
[1723249323428,3.81779,2619.4,2618.4,3.81911]
[1723249323602,3.8174,2619.6,2618.7,3.81868]
[1723249323937,3.8174,2619.6,2618.6,3.81882]
[1723249323938,3.81779,2619.4,2618.6,3.81882]
[1723249324095,3.8174,2619.6,2618.7,4.200552]
[1723249324301,3.81682,2620.0,2619.0,3.81821]
[1723249324596,0.59832484,2620.4,2619.3,3.81781]
[1723249324901,3.81619,2620.5,2619.1,0.55]
[1723249324902,3.81712,2619.8,2619.1,0.55]
[1723249325205,3.81652,2620.2,2619.2,3.81783]
[1723249325432,3.81626,2620.4,2619.3,0.07634454]
[1723249325743,3.81682,2620.0,2619.3,0.07634454]
[1723249325942,3.81724,2619.7,2619.0,0.55]
[1723249326090,3.81698,2619.9,2619.0,3.81824]
[1723249326291,3.81607,2620.5,2619.1,0.55]
[1723249326527,4.4980772,2620.5,2619.4,3.81766]
[1723249326738,0.59820195,2620.7,2619.2,3.81792]
[1723249326935,3.81726,2619.7,2619.0,2.4853]
[1723249327113,3.59820195,2620.7,2619.1,0.55]
[1723249327449,3.59820195,2620.7,2619.6,3.81736]
[1723249327450,3.81612,2620.5,2619.6,3.81736]
[1723249327653,3.81604,2620.6,2619.7,0.62163322]
[1723249327953,0.59820195,2620.7,2619.7,3.81718]
[1723249327954,3.81608,2620.5,2619.7,3.81718]
[1723249328149,4.41379491,2620.8,2619.8,3.81697]
[1723249328314,0.00365075,2621.0,2620.3,3.81635]
[1723249328659,0.00365075,2621.0,2620.4,0.55]
[1723249328947,0.00365075,2621.0,2620.9,10.11626]
[1723249329149,0.00365075,2621.0,2620.9,10.66626]
[1723249329299,0.00365075,2621.0,2620.9,15.548366]
[1723249329662,0.1260886,2621.8,2621.7,7.62862]
[1723249329842,8.6e-06,2621.8,2621.7,16.92823]
[1723249330142,0.00551953,2623.6,2622.8,2.4853]
[1723249330353,0.00551953,2623.6,2623.5,7.6234]
[1723249330642,0.00551953,2623.6,2623.5,10.1087]
[1723249330827,0.00551953,2623.6,2623.5,13.9204]
[1723249330998,0.00551953,2623.6,2623.5,10.1087]
[1723249331201,0.00551953,2623.6,2623.5,3.8117]
[1723249331453,0.00551953,2623.6,2623.5,12.28869867]
[1723249331597,0.00551953,2623.6,2623.5,7.4414]
[1723249331803,0.00551953,2623.6,2623.5,1.1797]
[1723249332252,0.00551953,2623.6,2623.5,8.1734]
[1723249332457,0.00551953,2623.6,2623.5,7.3617]
[1723249332740,0.00551953,2623.6,2623.5,14.9851]
[1723249332937,9.53e-06,2623.6,2623.5,14.9851]
[1723249333143,9.53e-06,2623.6,2623.5,11.1734]
[1723249333344,9.53e-06,2623.6,2623.5,16.35097]
[1723249333904,9.53e-06,2623.6,2623.5,12.53927]
[1723249334536,0.00500953,2623.6,2623.5,4.36587]
[1723249334752,0.00500953,2623.6,2623.5,5.17757]
[1723249334899,0.00500953,2623.6,2623.5,8.17757]
[1723249335103,0.00500953,2623.6,2623.2,3.81208]
[1723249335342,0.00500953,2623.6,2623.1,3.0]
[1723249335343,0.00500953,2623.6,2623.5,3.8117]
[1723249335526,0.00500953,2623.6,2623.5,7.6234]
[1723249335726,0.00500953,2623.6,2623.5,3.8117]
[1723249336044,0.00500953,2623.6,2623.5,4.574066]
[1723249336216,0.00500953,2623.6,2622.9,0.24853]
[1723249336416,0.00500953,2623.6,2622.2,2.4853]
[1723249336630,0.00500953,2623.6,2623.0,3.81239]
[1723249336822,0.00500953,2623.6,2623.1,0.02311145]
[1723249337017,0.00500953,2623.6,2622.7,3.81277]
[1723249337216,0.00500953,2623.6,2622.2,2.4853]
[1723249337417,0.00500953,2623.6,2623.0,3.81237]
[1723249337628,3.81171,2623.5,2622.6,3.813]
[1723249337957,3.81214,2623.2,2622.3,0.78823]
[1723249338103,3.81203,2623.3,2622.3,0.78823]
[1723249338307,3.81203,2623.3,2622.2,3.81355]
[1723249338571,0.00500953,2623.6,2622.2,3.81355]
[1723249338572,0.00500953,2623.6,2623.5,3.8117]
[1723249338908,0.00500953,2623.6,2623.5,7.69961248]
[1723249339105,0.00500953,2623.6,2623.5,3.88791248]
[1723249339415,0.00500953,2623.6,2623.5,0.70061373]
[1723249339608,0.00500953,2623.6,2623.3,2.3561]
[1723249339609,0.00500953,2623.6,2623.3,3.81195]
[1723249339809,0.00500953,2623.6,2623.4,0.55]
[1723249340014,0.00500953,2623.6,2623.5,7.6234]
[1723249340311,0.00500953,2623.6,2623.5,7.3617]
[1723249340510,0.00500953,2623.6,2623.5,4.3617]
[1723249340744,0.00500953,2623.6,2623.5,12.42127]
[1723249340908,0.00500953,2623.6,2623.5,15.42127]
[1723249341252,0.00500953,2623.6,2623.5,21.58907]
[1723249341253,9.53e-06,2623.6,2623.5,21.58907]
[1723249341608,9.53e-06,2623.6,2623.5,17.77737]
[1723249341861,9.53e-06,2623.6,2623.5,21.58907]
[1723249342455,9.53e-06,2623.6,2623.5,11.05957]
[1723249342810,9.53e-06,2623.6,2623.5,4.0517]
[1723249343239,9.53e-06,2623.6,2623.5,7.8634]
[1723249343449,9.53e-06,2623.6,2623.5,10.8634]
[1723249343646,9.53e-06,2623.6,2623.5,7.8634]
[1723249344657,9.53e-06,2623.6,2623.5,14.6751]
[1723249344832,9.53e-06,2623.6,2623.5,16.14261]
[1723249345010,9.53e-06,2623.6,2623.5,12.33091]
[1723249345211,9.53e-06,2623.6,2623.5,16.69261]
[1723249346248,9.53e-06,2623.6,2623.5,20.50431]
[1723249346459,9.53e-06,2623.6,2623.5,22.86041]
[1723249346763,0.1260886,2624.4,2624.3,7.62106]
[1723249347054,0.1260886,2624.4,2624.3,8.49696381]
[1723249348242,0.1260886,2624.4,2624.3,4.68643381]
[1723249348458,0.1260886,2624.4,2624.3,3.81053]
[1723249348627,0.1260886,2624.4,2623.5,8.42531]
[1723249348628,3.81113,2623.9,2623.5,0.24]
[1723249348827,3.81173,2623.5,2622.7,3.81283]
[1723249349153,0.25495886,2624.3,2622.8,0.381283]
[1723249349448,3.81113,2623.9,2623.1,3.81219]
[1723249349828,2.4235,2623.6,2622.8,3.81261]
[1723249350025,3.81224,2623.2,2622.4,3.81324]
[1723249350240,0.24,2623.2,2623.1,3.81228]
[1723249350429,0.24,2623.2,2623.1,11.818068]
[1723249350625,0.24,2624.3,2623.5,3.81155]
[1723249350826,0.24,2624.3,2623.7,3.81135]
[1723249351223,0.24,2624.3,2623.8,3.81116]
[1723249351439,0.24,2624.3,2623.9,3.811]
[1723249351756,0.24,2624.3,2624.2,7.6197608]
[1723249352154,0.24,2624.3,2624.2,4.3590808]
[1723249352458,2.4235,2624.2,2622.7,2.3561]
[1723249352661,2.4235,2624.2,2623.5,3.81155]
[1723249352818,2.4235,2624.2,2622.9,3.0]
[1723249353021,6.23428,2624.2,2623.5,3.8117]
[1723249353219,2.4235,2624.2,2623.6,3.81146]
[1723249353446,6.23428,2624.2,2623.5,0.762354]
[1723249353659,2.4235,2624.2,2623.6,3.81146]
[1723249353834,2.4235,2624.2,2622.8,3.0]
[1723249353835,0.24,2624.3,2623.9,3.81102]
[1723249354030,0.24,2624.3,2624.2,3.81068]
[1723249354220,0.24,2624.3,2624.1,3.81083]
[1723249354454,0.05377623,2624.2,2623.9,7.62212]
[1723249354659,0.05377623,2624.2,2624.1,3.81083]
[1723249354820,0.24,2624.3,2624.1,3.81083]
[1723249355021,0.05377623,2624.2,2624.1,3.81083]
[1723249355238,0.24,2624.3,2624.2,3.81068]
[1723249355431,0.24,2624.3,2624.0,3.81087]
[1723249355632,0.29377623,2624.3,2624.0,4.191957]
[1723249355836,0.29377623,2624.3,2624.1,3.81082]
[1723249356032,0.29377623,2624.3,2624.0,3.81087]
[1723249356456,0.29377623,2624.3,2624.1,3.81082]
[1723249356659,0.29377623,2624.3,2624.2,3.81068]
[1723249356957,0.29377623,2624.3,2624.2,7.62136]
[1723249357462,0.29377623,2624.3,2624.2,4.572816]
[1723249358039,0.29377623,2624.3,2624.2,8.383496]
[1723249358459,0.24,2624.3,2624.2,12.744176]
[1723249358824,0.24,2624.3,2624.2,8.933496]
[1723249359030,0.24,2624.3,2624.2,12.51855378]
[1723249359247,0.24,2624.3,2624.2,5.23175476]
[1723249359452,0.24,2624.3,2624.2,3.81068]
[1723249359966,0.24,2624.3,2624.2,7.62136]
[1723249360338,0.24,2624.3,2624.2,8.17136]
[1723249360535,0.24,2624.3,2624.2,7.62136]
[1723249360748,0.24,2624.3,2624.2,8.17136]
[1723249360951,0.24,2624.3,2624.2,9.1782653]
[1723249361633,0.24,2624.3,2624.2,12.7650483]
[1723249361823,0.24,2624.3,2624.2,9.1782653]
[1723249362033,0.24,2624.3,2624.2,15.3609453]
[1723249362332,6.06888,2626.5,2625.7,3.80849]
[1723249362551,6.06888,2626.5,2625.9,3.80821]
[1723249362758,0.04839607,2626.2,2625.7,3.80839]
[1723249362923,6.06888,2626.5,2625.1,7.39004672]
[1723249362924,3.808,2626.1,2625.1,7.39004672]
[1723249363136,3.808,2626.1,2624.2,9.20754]
[1723249363137,2.2615,2625.8,2624.8,3.58070672]
[1723249363332,2.2615,2625.8,2624.7,3.80995]
[1723249363535,3.80875,2625.6,2624.7,3.80986]
[1723249363771,0.04974609,2625.7,2624.5,7.62034]
[1723249364064,2.2615,2625.6,2624.1,0.65879468]
[1723249364262,2.2615,2625.6,2624.0,3.58070672]
[1723249364263,2.31121874,2625.6,2624.8,3.80972]
[1723249364475,3.80883,2625.5,2624.8,3.80972]
[1723249364679,2.31121874,2625.6,2624.4,3.81031]
[1723249364841,2.31121874,2625.6,2624.6,3.81]
[1723249364842,3.80917,2625.3,2624.6,3.81]
[1723249365047,0.04932658,2625.2,2624.0,3.58070672]
[1723249365282,3.8104,2624.4,2624.0,3.58070672]
[1723249365480,3.8104,2624.4,2623.3,6.18392]
[1723249365481,2.2615,2624.5,2623.3,6.18392]
[1723249365681,0.04903467,2624.3,2623.6,3.81146]
[1723249365999,2.2615,2624.5,2623.9,3.811]
[1723249366141,0.0490073,2624.2,2623.9,3.811]
[1723249366496,0.0486698,2624.1,2624.0,3.81097]
[1723249366782,0.0486698,2624.1,2624.0,7.62194]
[1723249366994,2.2615,2625.0,2624.5,3.81022]
[1723249367149,2.2615,2625.0,2624.5,3.81024]
[1723249367343,3.85811956,2624.9,2623.6,4.39239011]
[1723249367544,3.80997,2624.7,2623.9,3.81101]
[1723249367745,3.81013,2624.6,2623.9,3.79601]
[1723249367957,3.85776311,2624.6,2623.9,3.79601]
[1723249368163,3.85776311,2624.6,2623.7,3.81129]
[1723249368164,2.2615,2624.3,2623.7,3.81129]
[1723249368359,2.2615,2624.3,2623.9,3.81102]
[1723249368547,0.04748709,2624.2,2623.5,3.81164]
[1723249368772,0.04748709,2624.2,2623.6,0.4430032]
[1723249368983,2.2615,2624.3,2624.1,3.81083]
[1723249369146,2.2615,2624.3,2623.9,3.81108]
[1723249369355,0.04755097,2624.2,2624.1,3.81074]
[1723249369581,0.04755097,2624.2,2624.1,7.62157]
[1723249369796,2.2615,2625.0,2624.1,0.55]
[1723249369990,2.2615,2625.0,2624.6,3.81004]
[1723249370282,2.2615,2625.0,2624.1,3.81075]
[1723249370283,3.80993,2624.8,2624.1,3.81075]
[1723249370483,3.81007,2624.7,2623.9,3.81102]
[1723249370656,3.81007,2624.7,2624.0,7.6217]
[1723249370657,3.8574906,2624.7,2624.0,7.6217]
[1723249370860,0.83678466,2624.7,2624.2,3.81059]
[1723249371044,4.64684466,2624.7,2624.0,3.81094]
[1723249371248,0.83678466,2624.7,2624.0,3.81094]
[1723249371448,0.83678466,2624.7,2624.2,3.76059]
[1723249371692,0.0474506,2624.7,2624.6,3.8101]
[1723249371849,0.0474506,2624.7,2624.6,7.6202]
[1723249372048,2.2615,2625.4,2624.8,3.80968]
[1723249372276,3.80934,2625.2,2624.4,3.81031]
[1723249372650,0.04766049,2625.1,2624.6,7.62002]
[1723249372852,0.607038,2625.3,2624.6,3.81001]
[1723249373052,3.85702049,2625.2,2624.5,3.88643591]
[1723249373285,0.04766049,2625.2,2624.5,0.07619591]
[1723249373463,0.04766049,2625.2,2624.7,3.80982]
[1723249373884,3.80918,2625.3,2624.5,3.8102]
[1723249374088,6.67062734,2626.3,2625.1,3.80936]
[1723249374248,0.66706273,2626.2,2625.5,3.80875]
[1723249374453,0.66706273,2626.2,2625.6,3.80861]
[1723249374650,3.80816,2626.0,2625.2,0.930936]
[1723249374902,4.47493273,2626.2,2625.5,3.80879]
[1723249375074,3.80801,2626.1,2625.4,3.8088]
[1723249375392,2.26586866,2626.3,2625.8,3.80825]
[1723249376491,2.26586866,2626.3,2625.9,3.80819]
[1723249376990,2.26586866,2626.3,2625.7,7.69304883]
[1723249377198,2.26586866,2626.3,2625.8,3.80834]
[1723249377512,0.00436866,2626.3,2626.2,3.80778]
[1723249377807,0.00436866,2626.3,2626.2,7.61556]
[1723249378470,0.00436866,2626.3,2626.2,13.82794]
[1723249378671,0.00436866,2626.3,2626.2,14.37794]
[1723249378876,0.00436866,2626.3,2626.2,9.603354]
[1723249379586,0.00436866,2626.3,2626.2,13.411134]
[1723249379794,0.00436866,2626.3,2626.2,9.603354]
[1723249379974,0.00436866,2626.3,2626.0,3.80804]
[1723249380167,0.00436866,2626.3,2626.1,3.80787]
[1723249380389,0.04262606,2626.2,2626.1,3.80787]
[1723249380593,2.4717886,2627.0,2625.9,3.80817]
[1723249380594,3.80419472,2626.6,2625.9,3.80817]
[1723249380859,3.80751,2626.4,2625.5,4.189619]
[1723249381067,2.3457,2625.8,2624.9,0.38098]
[1723249381305,2.3457,2625.8,2625.4,3.80892]
[1723249381595,3.80739,2626.5,2625.4,3.80892]
[1723249381596,2.3457,2626.2,2625.4,0.761807]
[1723249381799,2.3457,2626.9,2626.5,3.80721]
[1723249382100,0.1260886,2627.0,2626.9,3.80676]
[1723249382301,0.1260886,2627.0,2626.9,12.181635]
[1723249382477,0.1260886,2627.0,2626.9,8.374875]
[1723249382678,0.1260886,2627.0,2626.9,12.181635]
[1723249382993,0.1260886,2627.0,2626.9,16.538395]
[1723249383213,0.1260886,2627.0,2626.9,19.326495]
[1723249383521,0.1260886,2627.0,2626.9,22.326495]
[1723249383522,8.6e-06,2627.0,2626.9,22.326495]
[1723249383919,8.6e-06,2627.0,2626.9,18.519735]
[1723249384122,8.6e-06,2627.0,2626.9,14.329475]
[1723249384287,8.6e-06,2627.0,2626.9,11.16352]
[1723249384480,8.6e-06,2627.0,2626.9,8.16352]
[1723249384900,8.6e-06,2627.0,2626.9,3.80676]
[1723249385283,8.6e-06,2627.0,2626.9,8.16352]
[1723249385629,8.6e-06,2627.0,2626.9,3.80676]
[1723249385788,8.6e-06,2627.0,2626.9,7.61352]
[1723249385982,8.6e-06,2627.0,2626.9,13.11233]
[1723249386897,8.6e-06,2627.0,2626.9,16.49583]
[1723249388327,0.11825561,2628.4,2627.4,3.80604]
[1723249388532,2.34751706,2629.5,2628.9,3.80375]
[1723249388533,0.41927754,2629.4,2628.9,3.80375]
[1723249388830,2.34751706,2629.5,2628.9,3.80375]
[1723249388831,2.34751706,2629.5,2629.0,3.8037]
[1723249388987,0.00181706,2629.5,2629.0,3.80372]
[1723249389183,0.00181706,2629.5,2628.2,2.4046]
[1723249389517,0.00181706,2629.5,2628.3,4.35467]
[1723249389724,2.3457,2629.3,2628.5,3.80435]
[1723249389881,3.80345,2629.2,2628.5,3.80435]
[1723249390280,3.80374,2629.0,2628.1,3.80491]
[1723249390483,3.80358,2629.1,2628.4,3.80449]
[1723249390716,3.80358,2629.1,2627.7,2.7881]
[1723249390717,3.80392,2628.9,2628.0,3.80512]
[1723249390930,3.80392,2628.9,2627.7,5.7881]
[1723249390931,0.609915,2629.2,2627.7,5.7881]
[1723249391094,0.00181706,2629.5,2628.3,3.80469]
[1723249391282,3.80369,2629.1,2628.3,3.80469]
[1723249391483,3.80382,2629.0,2628.3,3.80469]
[1723249391683,3.80418,2628.7,2628.1,3.80496]
[1723249391903,3.8044,2628.6,2627.9,3.80526]
[1723249392079,0.38044,2628.6,2627.9,3.80521]
[1723249392283,0.38044,2628.6,2627.5,9.20284]
[1723249392284,0.38044,2628.6,2627.5,3.80579]
[1723249392585,0.1,2628.9,2627.3,3.80616]
[1723249392786,3.80358,2629.1,2627.2,3.80632]
[1723249393011,3.80461,2628.4,2627.7,3.8055]
[1723249393495,3.80461,2628.4,2627.7,3.80549]
[1723249393692,3.80436,2628.6,2627.9,3.80531]
[1723249393925,3.80436,2628.6,2627.3,4.186762]
[1723249393926,3.80407,2628.8,2627.4,3.80597]
[1723249394153,0.1260886,2629.6,2627.4,3.80597]
[1723249394154,3.80530657,2631.5,2630.0,11.40684]
[1723249394475,0.00508657,2631.5,2631.2,7.60108]
[1723249394586,0.00508657,2631.5,2631.4,7.6005]
[1723249394787,0.00508657,2631.5,2631.2,5.397]
[1723249395027,0.00508657,2631.5,2631.1,3.80067]
[1723249395028,0.00508657,2631.5,2630.7,5.397]
[1723249395191,6.57e-06,2631.5,2631.4,11.40075]
[1723249395400,0.1260886,2632.2,2631.4,11.40075]
[1723249395401,0.1260886,2632.2,2632.1,11.39772]
[1723249395594,0.1260886,2632.2,2632.1,20.34472]
[1723249395804,2.3457,2634.4,2632.2,3.79904]
[1723249396027,2.3457,2634.4,2633.2,3.79763]
[1723249396225,3.79653429,2635.5,2632.3,0.55]
[1723249396226,1.521031,2636.3,2633.8,2.4046]
[1723249396443,1.5,2638.1,2632.3,0.55]
[1723249396444,0.24638945,2639.1,2636.8,3.79239]
[1723249396587,0.24638945,2639.1,2637.5,0.06599376]
[1723249396588,0.18566227,2638.4,2637.5,0.06599376]
[1723249396786,0.27490205,2639.1,2638.9,3.78937]
[1723249396986,5.28527,2641.9,2639.0,1.69012726]
[1723249396987,3.78532,2641.8,2639.0,1.69012726]
[1723249397187,1.06257242,2642.1,2641.3,3.78601]
[1723249397429,1.06257242,2642.1,2641.3,7.57202]
[1723249397634,3.78218,2644.0,2639.1,1.9395913]
[1723249397635,3.78331,2643.2,2641.7,2.4046]
[1723249397843,3.78331,2643.2,2640.6,0.1]
[1723249397844,2.3457,2643.4,2641.0,3.78634]
[1723249398052,3.78448,2642.4,2640.6,0.1]
[1723249398189,2.3457,2642.3,2639.5,0.1]
[1723249398392,5.668,2642.6,2639.1,2.13660961]
[1723249398393,2.3759,2641.8,2639.2,3.78899]
[1723249398634,3.62,2641.9,2638.3,0.1]
[1723249398635,3.78768,2640.2,2638.3,0.1]
[1723249398941,3.78768,2640.2,2636.8,1.5]
[1723249398942,3.78898,2639.3,2637.3,0.1]
[1723249399102,3.78927,2639.1,2636.5,0.1]
[1723249399311,2.3759,2638.8,2637.2,3.79185]
[1723249399489,0.616543,2638.7,2636.1,6.15129]
[1723249399691,2.3759,2638.8,2636.1,2.3579]
[1723249399914,0.1,2638.3,2635.7,3.79392]
[1723249400254,0.1,2638.3,2634.4,3.79587]
[1723249400255,2.4759,2637.6,2637.5,3.76e-06]
[1723249400422,2.4759,2637.6,2634.5,0.1]